Cogmind - Beta 11.1 @@@ ROGUE MODE // 2022.07.09 @ 23:16:26 Player: tkc Result: Destroyed by EX-DEC with AWS/EX-DEC Performance ------------- Evolutions (0) 0 Regions Visited (3) 600 Robots Destroyed (19) 95 Value Destroyed (307) 307 Prototype IDs (1) 20 Alien Tech Used (0) 0 Bonus (300) 300 TOTAL SCORE: 1322 Bonus ------- Aligned with FarCom 300 Cogmind --------- Core Integrity 0/250 Matter 239/300 Energy 125/125 System Corruption 12% Temperature Cool (0) Movement Rolling (140) Ox4 Location -10/Exiles Parts ------- > --- POWER (1) -------- Light Ion Engine > --- PROPULSION (2) --- Wheel > --- UTILITY (2) ------ Medium Storage Unit Large Storage Unit > --- WEAPON (2) ------- Field Lobotomy Kit > --- INVENTORY (15) --- Light Ion Engine Light Nuclear Core Wheel Compact Wheel High-capacity Matter Pod (200) Signal Interpreter Trap Reconfigurator PSU Rigger Medium Laser Light Assault Rifle Light Assault Rifle Light Assault Rifle Rocket Launcher Plasma Flamer Peak State ------------ > --- POWER ------------ Light Ion Engine > --- PROPULSION ------- Light Treads Wheel > --- UTILITY ---------- Medium Storage Unit Large Storage Unit > --- WEAPON ----------- Light Assault Rifle Field Lobotomy Kit > --- INVENTORY -------- Light Ion Engine Light Nuclear Core Wheel Compact Wheel High-capacity Matter Pod Signal Interpreter Trap Reconfigurator PSU Rigger Medium Laser Light Assault Rifle Light Assault Rifle Light Assault Rifle Rocket Launcher Plasma Flamer [Rating: 19] Favorites ----------- Power Light Ion Engine Engine Light Ion Engine Propulsion Light Treads Treads Light Treads Wheel Wheel Utility Medium Storage Unit Storage Medium Storage Unit Weapon Light Assault Rifle Energy Gun Medium Laser Ballistic Gun Light Assault Rifle Launcher Grenade Launcher Special Weapon Plasma Flamer Build | -11 -10 -10 -10 ------- Run | Scr Mat Min Exi Slots Evolved . | . . . . Power . | . . . . Propulsion . | . . . . Utility . | . . . . Weapon . | . . . . Parts Attached 33 | 7 7 18 1 Power 5 | 1 1 3 . Engine 5 | 1 1 3 . Core . | . . . . Reactor . | . . . . Propulsion 9 | 2 2 5 . Treads 5 | 1 1 3 . Leg . | . . . . Wheel 4 | 1 1 2 . Hover . | . . . . Flight . | . . . . Utility 4 | 2 1 1 . Device . | . . . . Storage 4 | 2 1 1 . Processor . | . . . . Hackware . | . . . . Protection . | . . . . Artifact . | . . . . Weapon 15 | 2 3 9 1 Energy Gun 6 | 1 2 3 . Energy Cannon . | . . . . Ballistic Gun 5 | 1 1 3 . Ballistic Cannon . | . . . . Launcher 2 | . . 2 . Special Weapon 2 | . . 1 1 Impact Weapon . | . . . . Slashing Weapon . | . . . . Piercing Weapon . | . . . . Special Melee Weapon . | . . . . Unidentified Prototypes 1 | . . . 1 Parts Lost 11 | . . 9 2 Power 1 | . . 1 . Propulsion 6 | . . 5 1 Utility . | . . . . Weapon 4 | . . 3 1 Highest Loss Streak 5 | . . 5 2 To Critical Strikes . | . . . . Average Slot Usage (%) 97 | . 100 95 100 Engine 13 | . 14 13 14 Treads 18 | . 14 22 14 Wheel 8 | . 14 2 14 Storage 28 | . 28 28 28 Energy Gun 6 | . 14 7 . Ballistic Gun 14 | . 14 14 14 Special Weapon 6 | . . 5 14 Naked Turns . | . . . . Heaviest Build 42 | 19 22 37 42 Greatest Support 40 | 20 20 40 10 Greatest Overweight (x) 4 | 1 1 3 4 Average Overweight (x) 1 | . . . 3 Largest Inventory Capacity 15 | 8 10 15 15 Average Capacity 12 | 7 8 12 15 Most Carried 14 | 6 10 11 14 Average Carried 10 | 3 8 9 13 Final Capacity 15 | 8 10 15 15 Final Carried 14 | 6 10 11 14 Class Distribution -------------------- 60% | Mutant 39% | Scavenger-Mutant Dominant Class ---------------- Mutant | -10/Materials Mutant | -10/Mines Scavenger-Mutant | -10/Exiles Resources | -11 -10 -10 -10 ----------- Run | Scr Mat Min Exi Matter Collected 1054 | 243 262 549 . Remotely . | . . . . Salvage Created 702 | 63 442 197 . Parts 33 | 3 22 8 . Haulers Intercepted 2 | . 2 . . Recyclers Shooed 1 | . 1 . . Parts Field Recycled . | . . . . Retrieved Matter . | . . . . Parts Self-Destructed . | . . . . Prevented . | . . . . Kills | -11 -10 -10 -10 ------- Run | Scr Mat Min Exi Combat Hostiles Destroyed 25 | . 7 18 . Guns 19 | . 7 12 . Cannons 1 | . . 1 . AOE 5 | . . 5 . Classes Destroyed 7 | 1 5 1 . Hauler 2 | . 2 . . Recycler 2 | 1 1 . . Operator 1 | . 1 . . Watcher 1 | . 1 . . Swarmer 9 | . 3 6 . Grunt 4 | . 4 . . Assembled 12 | . . 12 . Best Kill Streak 6 | 1 6 4 . Combat Bots Only 4 | . 4 4 . Max Kills in Single Turn 3 | 1 1 3 . Gunslinging . | . . . . Exploded 3 | . . 3 . Melee . | . . . . Uniques/NPCs Destroyed . | . . . . Combat | -11 -10 -10 -10 -------- Run | Scr Mat Min Exi Damage Taken 1718 | . 273 1038 407 Core 263 | . 31 140 92 Absorbed by Shields . | . . . . Core Remaining (%) 100 | 100 . . . Volleys Fired 110 | 6 42 59 3 Largest 2 | 2 2 2 2 Hottest 120 | 70 70 120 20 Shots Fired 207 | 12 83 107 5 Gun 190 | 12 83 93 2 Cannon . | . . . . Launcher 4 | . . 4 . Special 13 | . . 10 3 Kinetic 108 | 6 42 58 2 Thermal 52 | 6 22 24 . Explosive 4 | . . 4 . Electromagnetic 40 | . 19 21 . Robot Hit Streak 11 | 2 11 6 1 Robot Miss Streak 7 | 2 3 7 4 Penetration Max . | . . . . Secondary Targets 3 | . 1 2 . Max Gunslinging Chain 1 | . 1 1 . Shots Hit Robots 102 | 7 45 49 1 Core Hits 55 | 2 21 32 . Critical Kills . | . . . . Critical Parts Destroyed . | . . . . Critical Strikes 7 | . 3 4 . Burn 5 | . 1 4 . Corrupt 2 | . 2 . . Melee Attacks . | . . . . Impact . | . . . . Slashing . | . . . . Piercing . | . . . . Sneak Attacks . | . . . . Combat Hostiles . | . . . . Follow-up Attacks . | . . . . Damage Inflicted 1449 | 107 598 744 . Guns 1138 | 107 575 456 . Cannons . | . . . . Explosions 256 | . 23 233 . Melee . | . . . . Ramming . | . . . . Kinetic 563 | 58 279 226 . Thermal 378 | 49 175 154 . Explosive 233 | . . 233 . Electromagnetic 275 | . 144 131 . Impact . | . . . . Slashing . | . . . . Piercing . | . . . . Highest Corruption 12 | . . 10 12 Average Corruption 9 | . . 9 10 Corruption Purged . | . . . . Corruption Blocked . | . . . . Effects 78 | . . 53 25 Message Errors 13 | . . 9 4 Matter Fused 24 | . . 16 8 Heat Flow Errors 8 | . . 6 2 Energy Discharges 11 | . . 7 4 Data Loss (minor) 11 | . . 7 4 Data Loss (major) 5 | . . 5 . Misfires 2 | . . 1 1 Alerts 1 | . . . 1 Weapon Failures 3 | . . 2 1 Overload Shots . | . . . . Overflow Damage 37 | . . 37 . Projectiles . | . . . . Explosions 37 | . . 37 . Melee . | . . . . Knockbacks . | . . . . Impact . | . . . . Kinetic . | . . . . Secondary . | . . . . Self-Inflicted Damage 79 | . . 79 . Shots 2 | . . 2 . Rammed . | . . . . Targets Rammed . | . . . . Kicked . | . . . . Crushed . | . . . . Highest Temperature 361 | 18 113 361 256 Average Temperature 84 | 7 29 114 115 Received Heat Transfer 579 | . 99 480 . Effects 2 | . . 2 . Energy Bleed 1 | . . 1 . Matter Decay 1 | . . 1 . Siege Activations . | . . . . Robots Corrupted . | . . . . Combat Hostiles . | . . . . Parts Fried . | . . . . Impact Corruptions . | . . . . Robots Melted . | . . . . Combat Hostiles . | . . . . Parts Melted 3 | . 3 . . Heat Transferred 1886 | 148 568 1170 . Parts Sabotaged . | . . . . Parts Stolen . | . . . . Parts Stripped . | . . . . Power Chain Reactions 1 | . 1 . . Missiles Intercepted . | . . . . Alert | -11 -10 -10 -10 ------- Run | Scr Mat Min Exi Peak Influence 285 | 5 285 250 . Initial 43 | . 3 43 . Average 86 | 1 131 73 . Maximum Alert Level 1 | . 1 1 . Low Security (%) 80 | 100 78 80 . Level 1 19 | . 21 19 . Level 2 . | . . . . Level 3 . | . . . . Level 4 . | . . . . Level 5 . | . . . . High Security . | . . . . Max Security . | . . . . Squads Dispatched 2 | . 2 . . Investigation . | . . . . Extermination . | . . . . Reinforcement 2 | . 2 . . Assault . | . . . . Garrison . | . . . . Intercept . | . . . . Searches Triggered . | . . . . Construction Impeded . | . . . . Haulers Reinforced . | . . . . Active Scanning Responses . | . . . . Cargo Convoy Interrupts . | . . . . Stealth | -11 -10 -10 -10 --------- Run | Scr Mat Min Exi Distress Signals . | . . . . Communications Jammed . | . . . . Distress Signals . | . . . . Times Spotted 44 | . 13 19 12 Peak Tracking Total 14 | . 3 5 14 Tactical Retreats 2 | . . 2 . Traps | -11 -10 -10 -10 ------- Run | Scr Mat Min Exi Traps Triggered 2 | . 1 1 . Indirectly . | . . . . Trap Hack Attempts . | . . . . Triggered . | . . . . Disarmed . | . . . . Reprogrammed . | . . . . Reused . | . . . . Traps Extracted . | . . . . Installed . | . . . . Triggered . | . . . . Machines | -11 -10 -10 -10 ---------- Run | Scr Mat Min Exi Machines Disabled 2 | . 1 1 . Max in Single Turn 1 | . 1 1 . Machines Sabotaged . | . . . . Garrisons Compromised . | . . . . Overloaded Fab Kills . | . . . . Hacking | -11 -10 -10 -10 --------- Run | Scr Mat Min Exi Machines Accessed 7 | . 4 . 3 Terminals 3 | . 3 . . Fabricators . | . . . . Repair Stations . | . . . . Recycling Units 1 | . 1 . . Scanalyzers . | . . . . Garrison Access . | . . . . Total Hacks 40 | . 14 . 26 Successful 35 | . 9 . 26 Failed 5 | . 5 . . Catastrophic 2 | . 2 . . Database Lockouts . | . . . . Manual 12 | . 8 . 4 Terminals 9 | . 9 . . Fabricators . | . . . . Repair Stations . | . . . . Recycling Units 5 | . 5 . . Scanalyzers . | . . . . Garrison Access . | . . . . Terminal Hacks 29 | . 3 . 26 Record 26 | . . . 26 Robot Analysis 1 | . 1 . . Terminal Index 1 | . 1 . . Zone Layout 1 | . 1 . . Fabricator Hacks . | . . . . Repair Station Hacks . | . . . . Recycling Unit Hacks 5 | . 5 . . Process 2 | . 2 . . Report Inventory 1 | . 1 . . Retrieve Components 2 | . 2 . . Scanalyzer . | . . . . Garrison Access Hacks . | . . . . Unauthorized Hacks 1 | . 1 . . Terminals 1 | . 1 . . Botnet 1 | . 1 . . Fabricators . | . . . . Repair Stations . | . . . . Recycling Units . | . . . . Scanalyzers . | . . . . Garrison Access . | . . . . Data Cores Recovered . | . . . . Used . | . . . . Hacking Detections 2 | . 2 . . Full Trace Events . | . . . . Feedback Events . | . . . . Feedback Blocked . | . . . . Robot Schematics Acquired . | . . . . Robots Built . | . . . . Authchips . | . . . . Time . | . . . . Total Robot Build Rating . | . . . . Part Schematics Acquired . | . . . . Parts Built . | . . . . Authchips . | . . . . Time . | . . . . Total Part Build Rating . | . . . . Parts Repaired . | . . . . Time . | . . . . Parts Recycled . | . . . . Recycled Matter 171 | . 171 . . Retrieved Matter . | . . . . Retrieved Components . | . . . . Parts Scanalyzed . | . . . . Part Schematics Acquired . | . . . . Parts Damaged . | . . . . Bothacking | -11 -10 -10 -10 ------------ Run | Scr Mat Min Exi Used RIF Installer . | . . . . Robots Hacked . | . . . . Non-combat . | . . . . Combat . | . . . . Robot Hacks Applied . | . . . . Relay Couplers Released . | . . . . Fabnet Peak Effective % . | . . . . Robots Rewired . | . . . . Allies Hacked . | . . . . Hacks Repelled . | . . . . Allies | -11 -10 -10 -10 -------- Run | Scr Mat Min Exi Total Allies 2 | . . . 2 Largest Group 1 | . . . 1 Highest-Rated Group 9 | . . . 9 Highest-Rated Ally 9 | . . . 9 Total Orders . | . . . . Ally Attacks 2 | . . . 2 Total Damage 10 | . . . 10 Kills . | . . . . Allies Corrupted 1 | . . . 1 Allies Melted . | . . . . Field Lobotomies 2 | . . . 2 Intel | -11 -10 -10 -10 ------- Run | Scr Mat Min Exi Robot Analysis Total 1 | . 1 . . Derelict Logs Recovered 1 | . . 1 . Drone Launches . | . . . . Drone Recoveries . | . . . . Exploration | -11 -10 -10 -10 ------------- Run | Scr Mat Min Exi Turns Passed 2623 | 94 563 1306 660 Spaces Moved 1589 | 55 370 683 481 Core 2 | 2 . . . Treads 558 | 14 4 540 . Legs . | . . . . Wheels 1029 | 39 366 143 481 Hover . | . . . . Flight . | . . . . Fastest Speed 50 | 50 95 115 125 Average Speed 139 | 109 111 161 134 Slowest Speed 240 | 160 240 240 140 Overloaded Moves . | . . . . Propulsion Burnouts . | . . . . Robots Hopped . | . . . . Cave-ins Triggered . | . . . . Exploration Rate (%) 62 | 4 66 99 79 Regions Visited 3 Branch Regions 2 Pre-discovered Areas . | . . . . Known Exits Taken . | . . . . Unknown Exits Taken 3 | 1 1 1 . Scrap Searched 1 | . . 1 . Spaces Dug . | . . . . Terrain Destroyed 32 | . . 32 . Melee . | . . . . Projectile . | . . . . AOE 32 | . . 32 . Terrain Rammed . | . . . . Walls Destroyed . | . . . . Machines Disabled . | . . . . Actions | -11 -10 -10 -10 --------- Run | Scr Mat Min Exi Total 1786 | 73 443 782 488 Wait 21 | . 7 14 . Move 1586 | 54 369 682 481 Hop . | . . . . Pick Up 23 | 6 8 6 3 Fast Attach 13 | 7 2 4 . Attach 6 | . 1 5 . Detach . | . . . . Swap 14 | . 4 9 1 Drop 13 | . 10 3 . Fire 110 | 6 42 59 3 Melee . | . . . . Ram . | . . . . Kick . | . . . . Crush . | . . . . Escape Stasis . | . . . . Rewire . | . . . . Trap . | . . . . Miscellaneous . | . . . . Route ------- -11/Scrapyard -10/Materials (discovered 4 exits: *Mat x3 / [*Min]) -10/Mines (discovered 3 exits: *Mat x2 / *Exi) -10/Exiles (discovered 1 exit: [*Min]) History --------- Turn | Location | Event 47 | -11/Scrapyard | Discovered new exit (range 16) 95 | -11/Scrapyard | Entered Materials 193 | -10/Materials | Discovered new exit (range 14) 300 | -10/Materials | Build established: Mutant 536 | -10/Materials | Discovered new exit (range 15) 630 | -10/Materials | Discovered new exit (range 16) 641 | -10/Materials | Discovered new exit (range 14) 658 | -10/Materials | Entered Mines 659 | -10/Mines | Assembled infested the area 693 | -10/Mines | System corruption reached 10% 755 | -10/Mines | Lost 5 parts (3n2w) 985 | -10/Mines | Identified exit to Materials 1082 | -10/Mines | Core integrity fell below 50% 1128 | -10/Mines | Lost 3 parts (1p1n1w) 1197 | -10/Mines | Received a Rocket Launcher from a helpful Derelict 1396 | -10/Mines | A weapon hastily lodged in a ceiling crevice suddenly fell to the ground 1433 | -10/Mines | Discovered exit to Materials (range 10) 1955 | -10/Mines | Deemed a non-threat by the Exiles lab entrance 1956 | -10/Mines | Discovered new exit (range 5) 1964 | -10/Mines | Entered Exiles 1983 | -10/Exiles | Discovered new exit (range 15) 2021 | -10/Exiles | Met 8R-AWN 2042 | -10/Exiles | Met EX-HEX 2091 | -10/Exiles | Build established: Scavenger-Mutant 2103 | -10/Exiles | Met EX-BIN 2127 | -10/Exiles | Aligned with FarCom system 2128 | -10/Exiles | Given EX-Vault access code 2171 | -10/Exiles | Opened EX-Vault 2178 | -10/Exiles | Found Prototype Special Weapon 2183 | -10/Exiles | Found Prototype Device 2188 | -10/Exiles | Found Prototype Device 2189 | -10/Exiles | Identified Field Lobotomy Kit 2262 | -10/Exiles | Warned to stay clear of 0b10 Research branches 2409 | -10/Exiles | Met EX-DEC 2478 | -10/Exiles | Visited The Gauntlet 2599 | -10/Exiles | Attacked by the Exiles 2614 | -10/Exiles | Assimilated as-10466 with FLK Orb 2616 | -10/Exiles | Core integrity fell below 20% 2623 | -10/Exiles | Assimilated as-89739 with FLK Orb 2624 | -10/Exiles | Destroyed by EX-DEC with AWS/EX-DEC Last Messages --------------- 02542_ System corrupted: Component data lost. AM-PHS: That's RA-1N3's workstation, which we keep unoccupied as a tribute. RA-1N3 was always up for doing crazy stuff, the only one brave enough to try out the Chronowheel, only to never be seen again. 02557_ System corrupted: Matter fused (-7). 02582_ System corrupted: Heat flow error (+100). 02599_ System corrupted: FCS attempts to trigger Lgt. Assault Rifle. 02599_ System corrupted: Lgt. Assault Rifle misfires. 02599_ EXILES: Hostile robot within lab perimeter. Defensive protocols time, folks! 02614_ 5L-KAT destroyed. 02614_ as-10466 assimilated. 02620_ Lgt. Treads destroyed. 02620_ System corrupted: Lgt. Assault Rifle jammed. 02620_ as-10466 system corrupted by crushing effect. 02621_ as-10466 system terminally corrupted. 02621_ EX-BIN: "I just want to science!" 02623_ Lgt. Assault Rifle destroyed. 02623_ as-89739 assimilated. Map ----- +----------------------------------------------------+ | ???????????##""" """#??????????##""" | | ???????????#""" """#????????????#"""" | | ???????????#""" ""#???????????##"" | | ???????????#"" ########??####"""" | | ???????????#""" ## ####""" | | ???????????#"" """" | | ???????????##"" | | ????????????#"""" | | ????????????## | | ?????????????#" " "" | | ?????????????#"""" ""## ##""" " " | | ?????????????#"" ""#### ######""" " | | ?????????????#" """"##??# #????###""" | | ?????????????#""" """#??## ####???#### | | ?????????????## ca ""##??#! "!#??????? | | ??????????????#"" """##???#" !#??????? | | ??????????????##""" ##????#" "#??????? | | ???????????????##"""" z ##?????#!!""!"#??????? | | ????????????????### caaz#??????########??????? | | ??????????????????##### a ##????????????????????? | | ??????????????????????##a a#?????????????????????? | | ???????????????????????# #?????????????????????? | | ???????????????????????#z #?????????????????????? | | ???????????????????????# #?????????????????????? | | ?????????????####??????# #?????????????????????? | | ???""""""???#""""""????# @ #?????????????????????? | | ??"""""""#??#"""""""#??#%= #?????????????????????? | | ??""""" "#??#" """"#??#= #?????????????????????? | | "#""" """#??#"" """#??# #?????????????????????? | | "#"" ""????"" ""???# #?????????????????????? | | "###"""########"""###### ########?#####????????? | | """" """""""" """"""c """""""#"""""#????????? | | """ """"""" "#"" ""#????????? | | " ""#????????? | | " " "#????????? | | " """#????????? | | "" #"" ""#????????? | | "" " """"" " """" """""#"""""#????????? | | ####"""###""###"""########"""######?####?????????? | | ??"" ""#""#"" ""????"" ""??????????????????? | | ?#""" ""#""#""" ""???#"" """#?????????????????? | | ?#" """"""""#" " "#??#"""""""#?????????????????? | | ??"""""""????"""""""#??#"" """"??????????????????? | | ??"""""""????"""""""#???""""""???????????????????? | | ???????????????##?#??????####????????????????????? | | ?????????????????????????????????????????????????? | | ?????????????????????????????????????????????????? | | ?????????????????????????????????????????????????? | | ?????????????????????????????????????????????????? | | | +----------------------------------------------------+ Best States ------------- Heat Dissipation 25 Energy Generation 10 Energy Capacity 250 Matter Stores 300 Matter Capacity 300 Sight Range 16 Terrain Scan Density 10 Evasion (%) 44 Recoil Reduction 2 Item Schematics ----------------- None Robot Schematics ------------------ None Fabricated ------------ Nothing Alien Tech Used ----------------- None Achievements -------------- None Challenges ------------ None Game ------ Seed ContainmentSigixFilter Manual? 0 Play Time 00:30:44 Cumulative 44.4 hours Start 2022.07.09 @ 22:45:55 End 2022.07.09 @ 23:16:26 Sessions 1 Manual Loads 0 Difficulty Rogue Special Mode None Game No. 34 Rogue 33 Adventurer 0 Explorer 1 Win Type - Total 0 Types 0/0/0/0/0/0/0/0/0 Lore% 17 Gallery% 25 Achievement% 19 Wizard Run 0 Options --------- ASCII 0 Keyboard 0 Movement Mouse Keybinds 0 Fullscreen 1 Font 36/Terminus Map View 76x50 Tactical HUD 1 Map Filters NONE Filters NONE Steam 1 RUN: 7e3c07ff-5a87-4fc1-88c4-38b1e3a11017